Cogmind - Beta 13 @@@ ROGUE MODE // 2024.04.14 @ 18:27:55 Player: CeeJaaay Result: Destroyed by S-10 Pest with Light Assault Rifle Performance ------------- Evolutions (0) 0 Regions Visited (4) 800 Robots Destroyed (11) 55 Value Destroyed (310) 310 Prototype IDs (0) 0 Alien Tech Used (0) 0 Bonus (0) 0 TOTAL SCORE: 1165 Bonus ------- None Cogmind --------- Core Integrity 0/250 Matter 350/350 Energy 99/100 System Corruption 0% Temperature Cool (0) Movement Core (50) Location -9/Mines Parts ------- > --- POWER (1) -------- (None) > --- PROPULSION (2) --- (None) > --- UTILITY (2) ------ Small Matter Pod Tractor Beam > --- WEAPON (2) ------- (None) > --- INVENTORY (5) ---- Small Storage Unit Peak State ------------ > --- POWER ------------ Ion Engine > --- PROPULSION ------- Wheel Wheel > --- UTILITY ---------- Heat Sink Small Matter Pod > --- WEAPON ----------- Assault Rifle Assault Rifle > --- INVENTORY -------- Light Ion Engine [Rating: 7] Favorites ----------- Power Ion Engine Engine Ion Engine Propulsion Aluminum Leg Leg Aluminum Leg Wheel Wheel Utility Small Matter Pod Device Tractor Beam Storage Small Matter Pod Weapon Assault Rifle Energy Gun Small Laser Ballistic Gun Assault Rifle Build | -11 -10 -10 -10 -9 ------- Run | Yrd Mat Min Exi Min Slots Evolved . | . . . . . Power . | . . . . . Propulsion . | . . . . . Utility . | . . . . . Weapon . | . . . . . Parts Attached 13 | 8 1 4 . . Power 3 | 2 1 . . . Engine 3 | 2 1 . . . Core . | . . . . . Reactor . | . . . . . Propulsion 4 | 2 . 2 . . Treads . | . . . . . Leg 2 | . . 2 . . Wheel 2 | 2 . . . . Hover . | . . . . . Flight . | . . . . . Utility 3 | 2 . 1 . . Device 2 | 1 . 1 . . Storage 1 | 1 . . . . Processor . | . . . . . Hackware . | . . . . . Protection . | . . . . . Artifact . | . . . . . Weapon 3 | 2 . 1 . . Energy Gun 1 | . . 1 . . Energy Cannon . | . . . . . Ballistic Gun 2 | 2 . . . . Ballistic Cannon . | . . . . . Launcher . | . . . . . Special Weapon . | . . . . . Impact Weapon . | . . . . . Slashing Weapon . | . . . . . Piercing Weapon . | . . . . . Special Melee Weapon . | . . . . . Unidentified Prototypes . | . . . . . Parts Lost 8 | . . 4 . 4 Power 1 | . . 1 . . Propulsion 4 | . . 2 . 2 Utility . | . . . . . Weapon 3 | . . 1 . 2 Highest Loss Streak 4 | . . 4 . 2 To Critical Strikes . | . . . . . Average Slot Usage (%) 83 | . 96 69 85 70 Engine 2 | . 14 1 . . Leg 22 | . . 18 28 25 Wheel 4 | . 28 1 . . Device 12 | . 10 9 14 14 Storage 14 | . 14 14 14 14 Energy Gun 10 | . . 9 14 8 Ballistic Gun 15 | . 28 15 14 8 Naked Turns . | . . . . . Heaviest Build 11 | 11 11 5 5 5 Greatest Support 20 | 20 20 20 20 20 Greatest Overweight (x) . | . . . . . Average Overweight (x) . | . . . . . Largest Inventory Capacity 5 | 5 5 5 5 5 Average Capacity 5 | 5 5 5 5 5 Most Carried 5 | 2 1 5 2 1 Average Carried . | . . 1 1 1 Final Capacity 5 | 5 5 5 5 5 Final Carried 1 | 1 1 1 1 1 Class Distribution -------------------- 75% | Scavenger-Mutant 24% | Mutant Dominant Class ---------------- Mutant | -10/Materials Scavenger-Mutant | -10/Mines Scavenger-Mutant | -10/Exiles Scavenger-Mutant | -9/Mines Resources | -11 -10 -10 -10 -9 ----------- Run | Yrd Mat Min Exi Min Matter Collected 528 | 312 112 95 . 9 Remotely 49 | . . 40 . 9 Salvage Created 409 | 50 196 151 . 12 Parts 17 | 4 7 4 . 2 Haulers Intercepted . | . . . . . Recyclers Shooed . | . . . . . Parts Field Recycled . | . . . . . Retrieved Matter . | . . . . . Parts Self-Destructed . | . . . . . Prevented . | . . . . . Kills | -11 -10 -10 -10 -9 ------- Run | Yrd Mat Min Exi Min Combat Hostiles Destroyed 8 | 1 4 2 . 1 Guns 8 | 1 4 2 . 1 Classes Destroyed 5 | 2 1 1 . 1 Worker 1 | 1 . . . . Recycler 1 | . . 1 . . Watcher 1 | . 1 . . . Swarmer 1 | . . . . 1 Grunt 7 | 1 4 2 . . Best Kill Streak 3 | 1 2 3 . 1 Combat Bots Only 2 | 1 2 2 . 1 Max Kills in Single Turn 1 | 1 1 1 . 1 Gunslinging . | . . . . . Exploded . | . . . . . Melee . | . . . . . Uniques/NPCs Destroyed . | . . . . . Combat | -11 -10 -10 -10 -9 -------- Run | Yrd Mat Min Exi Min Hostile Shots Fired 112 | 3 26 27 . 56 Missed 30 | 1 6 7 . 16 Damage Taken 863 | 22 257 259 . 325 Core 254 | 12 98 46 . 98 Absorbed by Shields . | . . . . . Core Remaining (%) 95 | 95 . . . . Volleys Fired 46 | 4 17 18 . 7 Largest 2 | 2 2 2 . 2 Hottest 60 | 40 40 40 . 60 Shots Fired 77 | 8 34 25 . 10 Gun 77 | 8 34 25 . 10 Cannon . | . . . . . Launcher . | . . . . . Special . | . . . . . Kinetic 70 | 8 34 25 . 3 Thermal 7 | . . . . 7 Explosive . | . . . . . Electromagnetic . | . . . . . Robot Hit Streak 8 | 2 5 8 . 2 Robot Miss Streak 6 | 1 6 2 . 2 Penetration Max . | . . . . . Secondary Targets 2 | . . 1 . 1 Max Gunslinging Chain 1 | . . 1 . 1 Shots Hit Robots 46 | 5 21 16 . 4 Core Hits 21 | 3 10 7 . 1 Critical Kills . | . . . . . Critical Parts Destroyed . | . . . . . Critical Strikes . | . . . . . Melee Attacks . | . . . . . Impact . | . . . . . Slashing . | . . . . . Piercing . | . . . . . Sneak Attacks . | . . . . . Combat Hostiles . | . . . . . Follow-up Attacks . | . . . . . Damage Inflicted 607 | 59 295 206 . 47 Guns 606 | 59 294 206 . 47 Cannons . | . . . . . Explosions . | . . . . . Melee . | . . . . . Ramming 1 | . 1 . . . Kinetic 585 | 59 294 206 . 26 Thermal 21 | . . . . 21 Explosive . | . . . . . Electromagnetic . | . . . . . Impact . | . . . . . Slashing . | . . . . . Piercing . | . . . . . Highest Corruption . | . . . . . Average Corruption . | . . . . . Corruption Purged . | . . . . . Corruption Blocked . | . . . . . Overload Shots . | . . . . . Overflow Damage . | . . . . . Projectiles . | . . . . . Explosions . | . . . . . Melee . | . . . . . Knockbacks . | . . . . . Impact . | . . . . . Kinetic . | . . . . . Secondary . | . . . . . Self-Inflicted Damage . | . . . . . Shots . | . . . . . Rammed 1 | . 1 . . . Targets Rammed 1 | . 1 . . . Kicked . | . . . . . Crushed . | . . . . . Highest Temperature 28 | . 28 27 . . Average Temperature 9 | . 9 10 . . Received Heat Transfer 339 | 12 168 159 . . Siege Activations . | . . . . . Robots Corrupted . | . . . . . Combat Hostiles . | . . . . . Parts Fried . | . . . . . Impact Corruptions . | . . . . . Robots Melted . | . . . . . Combat Hostiles . | . . . . . Parts Melted . | . . . . . Heat Transferred 50 | . . . . 50 Parts Sabotaged . | . . . . . Parts Stolen . | . . . . . Parts Stripped . | . . . . . Power Chain Reactions . | . . . . . Alert | -11 -10 -10 -10 -9 ------- Run | Yrd Mat Min Exi Min Peak Influence 138 | 25 138 89 . 20 Initial 59 | . 16 59 . . Average 50 | 7 72 84 . 1 Maximum Alert Level . | . . . . . Low Security (%) 100 | 100 100 100 . 100 Level 1 . | . . . . . Level 2 . | . . . . . Level 3 . | . . . . . Level 4 . | . . . . . Level 5 . | . . . . . High Security . | . . . . . Max Security . | . . . . . Squads Dispatched . | . . . . . Investigation . | . . . . . Extermination . | . . . . . Reinforcement . | . . . . . Assault . | . . . . . Garrison . | . . . . . Intercept . | . . . . . Searches Triggered . | . . . . . Construction Impeded . | . . . . . Haulers Reinforced . | . . . . . Active Scanning Responses . | . . . . . Cargo Convoy Interrupts . | . . . . . Stealth | -11 -10 -10 -10 -9 --------- Run | Yrd Mat Min Exi Min Distress Signals 3 | . 3 . . . Communications Jammed . | . . . . . Distress Signals . | . . . . . Times Spotted 12 | 1 6 2 . 3 Peak Tracking Total 3 | 1 3 2 . 3 Tactical Retreats . | . . . . . Traps | -11 -10 -10 -10 -9 ------- Run | Yrd Mat Min Exi Min Traps Triggered . | . . . . . Indirectly . | . . . . . Trap Hack Attempts . | . . . . . Triggered . | . . . . . Disarmed . | . . . . . Reprogrammed . | . . . . . Reused . | . . . . . Traps Extracted . | . . . . . Installed . | . . . . . Triggered . | . . . . . Machines | -11 -10 -10 -10 -9 ---------- Run | Yrd Mat Min Exi Min Machines Disabled . | . . . . . Max in Single Turn . | . . . . . Machines Repaired . | . . . . . Machines Dismantled . | . . . . . Machines Sabotaged . | . . . . . Overloaded Fab Kills . | . . . . . Hacking | -11 -10 -10 -10 -9 --------- Run | Yrd Mat Min Exi Min Machines Accessed 3 | . . . 3 . Terminals . | . . . . . Fabricators . | . . . . . Repair Stations . | . . . . . Recycling Units . | . . . . . Scanalyzers . | . . . . . Garrison Access . | . . . . . Total Hacks 26 | . . . 26 . Successful 26 | . . . 26 . Failed . | . . . . . Catastrophic . | . . . . . Database Lockouts . | . . . . . Manual . | . . . . . Terminals . | . . . . . Fabricators . | . . . . . Repair Stations . | . . . . . Recycling Units . | . . . . . Scanalyzers . | . . . . . Garrison Access . | . . . . . Terminal Hacks 26 | . . . 26 . Record 26 | . . . 26 . Fabricator Hacks . | . . . . . Repair Station Hacks . | . . . . . Recycling Unit Hacks . | . . . . . Scanalyzer . | . . . . . Garrison Access Hacks . | . . . . . Unauthorized Hacks . | . . . . . Terminals . | . . . . . Fabricators . | . . . . . Repair Stations . | . . . . . Recycling Units . | . . . . . Scanalyzers . | . . . . . Garrison Access . | . . . . . Data Cores Recovered . | . . . . . Used . | . . . . . Hacking Detections . | . . . . . Full Trace Events . | . . . . . Feedback Events . | . . . . . Feedback Blocked . | . . . . . Robot Schematics Acquired . | . . . . . Robots Built . | . . . . . Authchips . | . . . . . Time . | . . . . . Total Robot Build Rating . | . . . . . Part Schematics Acquired . | . . . . . Parts Built . | . . . . . Authchips . | . . . . . Time . | . . . . . Total Part Build Rating . | . . . . . Parts Repaired . | . . . . . Time . | . . . . . Parts Recycled . | . . . . . Recycled Matter . | . . . . . Retrieved Matter . | . . . . . Retrieved Components . | . . . . . Parts Scanalyzed . | . . . . . Part Schematics Acquired . | . . . . . Parts Damaged . | . . . . . Bothacking | -11 -10 -10 -10 -9 ------------ Run | Yrd Mat Min Exi Min Used RIF Installer . | . . . . . Robots Hacked . | . . . . . Non-combat . | . . . . . Combat . | . . . . . Robot Hacks Applied . | . . . . . Relay Couplers Released . | . . . . . Fabnet Peak Effective % . | . . . . . Robots Rewired . | . . . . . Allies Hacked . | . . . . . Hacks Repelled . | . . . . . Allies | -11 -10 -10 -10 -9 -------- Run | Yrd Mat Min Exi Min Total Allies . | . . . . . Largest Group . | . . . . . Highest-Rated Group . | . . . . . Highest-Rated Ally . | . . . . . Total Orders . | . . . . . Ally Attacks . | . . . . . Total Damage . | . . . . . Kills . | . . . . . Allies Corrupted . | . . . . . Allies Melted . | . . . . . Intel | -11 -10 -10 -10 -9 ------- Run | Yrd Mat Min Exi Min Robot Analysis Total . | . . . . . Derelict Logs Recovered . | . . . . . Drone Launches . | . . . . . Drone Recoveries . | . . . . . Exploration | -11 -10 -10 -10 -9 ------------- Run | Yrd Mat Min Exi Min Turns Passed 1330 | 90 183 174 762 121 Spaces Moved 1079 | 84 160 113 634 88 Core 37 | 17 . 17 . 3 Treads . | . . . . . Legs 815 | . . 96 634 85 Wheels 227 | 67 160 . . . Hover . | . . . . . Flight . | . . . . . Fastest Speed 50 | 50 80 50 120 50 Average Speed 109 | 73 80 109 120 117 Slowest Speed 120 | 80 80 120 120 120 Overloaded Moves . | . . . . . Propulsion Burnouts . | . . . . . Robots Hopped . | . . . . . Cave-ins Triggered . | . . . . . Exploration Rate (%) 32 | 8 31 17 92 16 Regions Visited 4 Branch Regions 3 Pre-discovered Areas . | . . . . . Known Exits Taken . | . . . . . Unknown Exits Taken 4 | 1 1 1 1 . Scrap Searched . | . . . . . Spaces Dug . | . . . . . Terrain Destroyed . | . . . . . Melee . | . . . . . Projectile . | . . . . . AOE . | . . . . . Terrain Rammed . | . . . . . Walls Destroyed . | . . . . . Machines Disabled . | . . . . . Actions | -11 -10 -10 -10 -9 --------- Run | Yrd Mat Min Exi Min Total 1152 | 103 181 138 635 95 Wait . | . . . . . Move 1075 | 83 159 112 633 88 Hop . | . . . . . Pick Up 14 | 8 1 4 1 . Fast Attach . | . . . . . Attach 11 | 7 . 4 . . Detach . | . . . . . Swap 2 | 1 1 . . . Drop 3 | . 2 . 1 . Fire 46 | 4 17 18 . 7 Melee . | . . . . . Ram 1 | . 1 . . . Kick . | . . . . . Crush . | . . . . . Escape Stasis . | . . . . . Rewire . | . . . . . Trap . | . . . . . Miscellaneous . | . . . . . Route ------- -11/Scrapyard -10/Materials (discovered 2 exits: [*Min x2]) -10/Mines (discovered 2 exits: [*Mat] / *Exi) -10/Exiles (discovered 2 exits: [*Min x2]) -9/Mines History --------- Turn | Location | Event 2 | -11/Scrapyard | Met Revision 17 62 | -11/Scrapyard | Discovered new exit (range 8) 91 | -11/Scrapyard | Entered Materials 149 | -10/Materials | Discovered new exit (range 7) 269 | -10/Materials | Discovered new exit (range 4) 274 | -10/Materials | Entered Mines 282 | -10/Mines | Met a Derelict bent on vengeance 283 | -10/Mines | Core integrity fell below 50% 300 | -10/Mines | Build established: Mutant 327 | -10/Mines | Lost 4 parts (1p2n1w) 358 | -10/Mines | Discovered new exit (range 6) 440 | -10/Mines | Deemed a non-threat by the Exiles lab entrance 441 | -10/Mines | Discovered new exit (range 5) 448 | -10/Mines | Entered Exiles 482 | -10/Exiles | Discovered new exit (range 14) 533 | -10/Exiles | Met 8R-AWN 560 | -10/Exiles | Met EX-HEX 628 | -10/Exiles | Met EX-DEC 632 | -10/Exiles | Build established: Scavenger-Mutant 725 | -10/Exiles | Discovered new exit (range 14) 812 | -10/Exiles | Visited The Gauntlet 1001 | -10/Exiles | Met EX-BIN 1210 | -10/Exiles | Entered Mines 1298 | -9/Mines | Core integrity fell below 20% 1331 | -9/Mines | Destroyed by S-10 Pest with Light Assault Rifle Last Messages --------------- good enough. Same thing. Impressive, wish I'd thought of it. >>Record! "HEX-105/Trap Reconfigurator" HEX: 0b10 trap systems are pretty poorly defended. I found that sending out a series of tuned electromagnetic waves is enough to redefine their targets. There's probably more we could do in this area. ** DEC: Like simultaneously trigger all the traps across a floor? Sounds good to me. Connecting with EX-Vault Access... LOCATION=UNKNOWN GOAL=ESCAPE S-10 Pest destroyed. Switching to secondary target: S-10 Pest. Acquired 6 matter. Acquired 3 matter. Assault Rifle destroyed. Sml. Laser destroyed. Aluminum Leg destroyed. Map ----- +----------------------------------------------------+ | | | | | | | | | | | | | | | | | | | ?????????????????????????????????????????????????? | | ?????????#######?????????????????????????????????? | | ????????## #####???????###???????????????????? | | ??????### ######## ##??????????????????? | | ####### #??????????????????? | | %= $ ??????????????????? | | ###### =### ### #??????????????????????? | | ###??## ##?## ### #??????????????????????? | | #??## ##???# #??????????????????????? | | #?## #????## #### ##?????????????????????? | | ### #?????#### ss ##????????????????????? | | ## ##????????# ! !! #????????????????????? | | # ####?????????# !!!! #????????????????????? | | ##????????????# ! !! #????????????????????? | | #??????????????# ! ! #????????????????????? | | #???????????????# #????????????????????? | | "" #???????????????# @ #????????????????????? | | "" ##???????????????#########????????????????????? | | "" #?????????????????????????????????????????????? | | ???????????????????????????????????????????????? | | ????????????????????????????????????????????????? | | ?????????????????????????????????????????????????? | | ?????????????????????????????????????????????????? | | ?????????????????????????????????????????????????? | | ?????????????????????????????????????????????????? | | ?????????????????????????????????????????????????? | | ?????????????????????????????????????????????????? | | ?????????????????????????????????????????????????? | | ?????????????????????????????????????????????????? | | ?????????????????????????????????????????????????? | | ?????????????????????????????????????????????????? | | ?????????????????????????????????????????????????? | | ?????????????????????????????????????????????????? | | ?????????????????????????????????????????????????? | | ?????????????????????????????????????????????????? | | ?????????????????????????????????????????????????? | | ?????????????????????????????????????????????????? | | ?????????????????????????????????????????????????? | | ?????????????????????????????????????????????????? | | ?????????????????????????????????????????????????? | | ?????????????????????????????????????????????????? | +----------------------------------------------------+ Best States ------------- Heat Dissipation 35 Energy Generation 10 Energy Capacity 250 Matter Stores 350 Matter Capacity 350 Sight Range 16 Terrain Scan Density 10 Evasion (%) 55 Item Schematics ----------------- None Robot Schematics ------------------ None Fabricated ------------ Nothing Alien Tech Used ----------------- None Achievements -------------- Librarian Challenges ------------ None Game ------ Seed WeaponsGrenadeReconfigurator Manual? 0 Play Time 00:26:31 Cumulative 1.6 hours Start 2024.04.14 @ 17:56:16 End 2024.04.14 @ 18:27:55 Sessions 1 Manual Loads 0 Difficulty Rogue Special Mode None Game No. 2 Rogue 2 Adventurer 0 Explorer 0 Win Type - Total 0 Types 0/0/0/0/0/0/0/0/0 Lore% 8 Gallery% 3 Achievement% 4 Wizard Run 0 Options --------- Layout 1 ASCII 0 Keyboard 0 Movement Arrows Keybinds 0 Fullscreen 2 Font 24/Smallcaps Map View 50x35 Zoom Use 0% Tactical HUD 0 Map Filters NONE Filters NONE Steam 1 RUN: 9904fed8-8ced-465c-8219-3a1943e11340